[Event "*** Titled Tuesday Blitz"]
[Site "Chess.com"]
[Date "2020.05.05"]
[Round "7"]
[White "DACF2905"]
[Black "Nikithebest"]
[Result "1-0"]
[WhiteElo "2217"]
[BlackElo "2434"]
[TimeControl "180+1"]
[EndTime "11:17:52 PDT"]
[Termination "DACF2905 won by checkmate"]

1. c4 {[%clk 0:03:00.9]} 1... c5 {[%clk 0:02:58.2]} 2. g3 {[%clk 0:03:00.8]}
2... g6 {[%clk 0:02:58.3]} 3. Nc3 {[%clk 0:03:01]} 3... Bg7 {[%clk 0:02:58.5]}
4. Bg2 {[%clk 0:03:01.5]} 4... Nc6 {[%clk 0:02:58.9]} 5. e3 {[%clk 0:03:01.5]}
5... d6 {[%clk 0:02:58.4]} 6. Nge2 {[%clk 0:03:01.6]} 6... Be6 {[%clk
0:02:56.3]} 7. b3 {[%clk 0:02:59.5]} 7... Qd7 {[%clk 0:02:56.4]} 8. d4 {[%clk
0:02:57.7]} 8... cxd4 {[%clk 0:02:46.3]} 9. exd4 {[%clk 0:02:57.5]} 9... Bh3
{[%clk 0:02:46.4]} 10. O-O {[%clk 0:02:54.3]} 10... Bxg2 {[%clk 0:02:46.5]} 11.
Kxg2 {[%clk 0:02:54.4]} 11... Nf6 {[%clk 0:02:38.5]} 12. h3 {[%clk 0:02:52]}
12... O-O {[%clk 0:02:36.1]} 13. Be3 {[%clk 0:02:51.3]} 13... d5 {[%clk
0:02:36.5]} 14. Qd2 {[%clk 0:02:49.1]} 14... Qf5 {[%clk 0:02:17.9]} 15. g4
{[%clk 0:02:44.7]} 15... Qd7 {[%clk 0:02:17.1]} 16. Rad1 {[%clk 0:02:27.2]}
16... h5 {[%clk 0:02:17.1]} 17. f3 {[%clk 0:02:24.7]} 17... Rad8 {[%clk
0:02:11.5]} 18. c5 {[%clk 0:02:21]} 18... hxg4 {[%clk 0:01:23.4]} 19. hxg4
{[%clk 0:02:20.5]} 19... Nxg4 {[%clk 0:01:20.2]} 20. fxg4 {[%clk 0:02:20.4]}
20... Qxg4+ {[%clk 0:01:20.6]} 21. Ng3 {[%clk 0:02:20.4]} 21... e5 {[%clk
0:01:17]} 22. Bh6 {[%clk 0:01:57.4]} 22... Nxd4 {[%clk 0:01:10]} 23. Bxg7 {[%clk
0:01:57]} 23... Kxg7 {[%clk 0:01:10.4]} 24. Qf2 {[%clk 0:01:49.7]} 24... f5
{[%clk 0:01:08.5]} 25. Qe3 {[%clk 0:01:47.5]} 25... Rfe8 {[%clk 0:01:00.9]} 26.
Ne2 {[%clk 0:01:32.1]} 26... f4 {[%clk 0:01:01]} 27. Nxf4 {[%clk 0:01:31.8]}
27... Nf5 {[%clk 0:00:59.4]} 28. Nh5+ {[%clk 0:01:24.3]} 28... Kf7 {[%clk
0:00:30.8]} 29. Qh6 {[%clk 0:01:12.5]} 29... Ke6 {[%clk 0:00:26.9]} 30. Rxf5
{[%clk 0:01:09.2]} 30... Qxd1 {[%clk 0:00:21.3]} 31. Rxe5+ {[%clk 0:00:56.5]}
31... Kxe5 {[%clk 0:00:15.4]} 32. Qe3# {[%clk 0:00:55.6]} 1-0

[Event "*** Titled Tuesday Blitz"]
[Site "Chess.com"]
[Date "2020.05.05"]
[Round "7"]
[White "Munkhzul_Turmunkh"]
[Black "suneebaker"]
[Result "0-1"]
[WhiteElo "2484"]
[BlackElo "2185"]
[TimeControl "180+1"]
[EndTime "11:17:53 PDT"]
[Termination "suneebaker won by resignation"]

1. e4 {[%clk 0:03:00.9]} 1... e6 {[%clk 0:02:59.6]} 2. d4 {[%clk 0:02:51.5]}
2... d5 {[%clk 0:02:59.5]} 3. Nc3 {[%clk 0:02:49.2]} 3... Nf6 {[%clk 0:02:59.4]}
4. e5 {[%clk 0:02:48.7]} 4... Nfd7 {[%clk 0:02:58.8]} 5. f4 {[%clk 0:02:48.5]}
5... c5 {[%clk 0:02:59]} 6. Nf3 {[%clk 0:02:48.5]} 6... Nc6 {[%clk 0:02:59.5]}
7. Be3 {[%clk 0:02:47.8]} 7... h6 {[%clk 0:03:00]} 8. Qd2 {[%clk 0:02:47.6]}
8... g5 {[%clk 0:02:58.9]} 9. fxg5 {[%clk 0:02:46]} 9... cxd4 {[%clk 0:02:57.5]}
10. Nxd4 {[%clk 0:02:44.6]} 10... Ndxe5 {[%clk 0:02:54.3]} 11. gxh6 {[%clk
0:02:41.8]} 11... Bxh6 {[%clk 0:02:50.9]} 12. Bxh6 {[%clk 0:02:38]} 12... Qh4+
{[%clk 0:02:51.2]} 13. g3 {[%clk 0:02:35.6]} 13... Qxh6 {[%clk 0:02:51.6]} 14.
Qxh6 {[%clk 0:02:26.4]} 14... Rxh6 {[%clk 0:02:51.3]} 15. Nce2 {[%clk
0:02:15.1]} 15... Bd7 {[%clk 0:02:43]} 16. Bg2 {[%clk 0:02:13.3]} 16... Ke7
{[%clk 0:02:41.5]} 17. h4 {[%clk 0:02:11.8]} 17... Ng4 {[%clk 0:02:30.6]} 18.
Kd2 {[%clk 0:02:02.6]} 18... Rg8 {[%clk 0:02:24.1]} 19. Rae1 {[%clk 0:01:59.2]}
19... Nxd4 {[%clk 0:02:14.2]} 20. Nxd4 {[%clk 0:01:58.8]} 20... Kd6 {[%clk
0:02:14.6]} 21. Rhf1 {[%clk 0:01:55.6]} 21... Ne5 {[%clk 0:02:10.4]} 22. Rxe5
{[%clk 0:01:24.8]} 22... Kxe5 {[%clk 0:02:09.1]} 23. Nf3+ {[%clk 0:01:25.1]}
23... Kd6 {[%clk 0:02:06.8]} 24. Ng5 {[%clk 0:01:26]} 24... Rxg5 {[%clk
0:01:51.6]} 25. hxg5 {[%clk 0:01:26.9]} 25... Rh2 {[%clk 0:01:51.4]} 26. Rf2
{[%clk 0:01:26.8]} 26... Ke7 {[%clk 0:01:51]} 27. Ke3 {[%clk 0:01:26.3]} 27...
Bc6 {[%clk 0:01:48.6]} 28. Kd4 {[%clk 0:01:01.1]} 28... Kd6 {[%clk 0:01:39.3]}
29. Rd2 {[%clk 0:00:33.6]} 29... e5+ {[%clk 0:01:37.7]} 30. Kd3 {[%clk
0:00:33.5]} 30... Rh5 {[%clk 0:01:20]} 31. c4 {[%clk 0:00:19.5]} 31... Rxg5
{[%clk 0:01:17.8]} 32. cxd5 {[%clk 0:00:18.8]} 32... Rxg3+ {[%clk 0:01:17.5]}
33. Ke4 {[%clk 0:00:18.4]} 33... Bd7 {[%clk 0:01:14.7]} 34. Bf3 {[%clk
0:00:14.9]} 34... f5+ {[%clk 0:01:12.8]} 35. Ke3 {[%clk 0:00:14.9]} 35... e4
{[%clk 0:01:12.1]} 0-1

[Event "*** Titled Tuesday Blitz"]
[Site "Chess.com"]
[Date "2020.05.05"]
[Round "7"]
[White "Hasangatin_Ramil"]
[Black "bakki78"]
[Result "0-1"]
[WhiteElo "2527"]
[BlackElo "2716"]
[TimeControl "180+1"]
[EndTime "11:17:55 PDT"]
[Termination "bakki78 won by checkmate"]

1. e4 {[%clk 0:03:00.9]} 1... c5 {[%clk 0:02:57.6]} 2. Nf3 {[%clk 0:03:00.9]}
2... Nc6 {[%clk 0:02:56.9]} 3. Bb5 {[%clk 0:03:00.7]} 3... Nf6 {[%clk 0:02:56]}
4. e5 {[%clk 0:02:57.2]} 4... Nd5 {[%clk 0:02:55.3]} 5. Bxc6 {[%clk 0:02:53.2]}
5... dxc6 {[%clk 0:02:54.3]} 6. d3 {[%clk 0:02:53.1]} 6... h6 {[%clk 0:02:52.3]}
7. h3 {[%clk 0:02:52.1]} 7... Bf5 {[%clk 0:02:52.1]} 8. O-O {[%clk 0:02:47.9]}
8... e6 {[%clk 0:02:51.5]} 9. Re1 {[%clk 0:02:44.6]} 9... g5 {[%clk 0:02:47.7]}
10. Nbd2 {[%clk 0:02:40]} 10... Rg8 {[%clk 0:02:39.4]} 11. Nh2 {[%clk
0:02:25.1]} 11... Qc7 {[%clk 0:02:33.6]} 12. Ndf1 {[%clk 0:02:14.4]} 12... O-O-O
{[%clk 0:02:29.9]} 13. Ng3 {[%clk 0:02:13.4]} 13... Bg6 {[%clk 0:02:29.2]} 14.
Qe2 {[%clk 0:01:17.7]} 14... Bg7 {[%clk 0:02:19.6]} 15. Bd2 {[%clk 0:01:05.7]}
15... h5 {[%clk 0:02:06.6]} 16. Nxh5 {[%clk 0:01:02.6]} 16... Bxh5 {[%clk
0:02:02.7]} 17. Qxh5 {[%clk 0:01:03.5]} 17... Bxe5 {[%clk 0:02:02.6]} 18. Nf3
{[%clk 0:00:46.1]} 18... Bf4 {[%clk 0:01:58.6]} 19. Qh7 {[%clk 0:00:19]} 19...
Bxd2 {[%clk 0:01:45.1]} 20. Nxd2 {[%clk 0:00:18.3]} 20... Nf6 {[%clk 0:01:43.5]}
21. Qh6 {[%clk 0:00:07.8]} 21... Rg6 {[%clk 0:01:43.3]} 22. Qxg6 {[%clk
0:00:08]} 22... fxg6 {[%clk 0:01:42.9]} 23. Rxe6 {[%clk 0:00:08.9]} 23... Nd5
{[%clk 0:01:35.8]} 24. Rxg6 {[%clk 0:00:06.9]} 24... Qf4 {[%clk 0:01:29.1]} 25.
Ne4 {[%clk 0:00:06.3]} 25... Re8 {[%clk 0:01:27.7]} 26. Nxc5 {[%clk 0:00:03.8]}
26... Qf7 {[%clk 0:01:11]} 27. Rxg5 {[%clk 0:00:03.1]} 27... Nf4 {[%clk
0:01:11.1]} 28. Ne4 {[%clk 0:00:02.3]} 28... Kc7 {[%clk 0:01:07]} 29. Rg4 {[%clk
0:00:02.5]} 29... Rg8 {[%clk 0:01:04.3]} 30. Rf1 {[%clk 0:00:02.1]} 30... Rxg4
{[%clk 0:01:03.4]} 31. hxg4 {[%clk 0:00:03]} 31... Ne2+ {[%clk 0:01:03.5]} 32.
Kh2 {[%clk 0:00:03.9]} 32... Qh7# {[%clk 0:01:03.8]} 0-1

[Event "*** Titled Tuesday Blitz"]
[Site "Chess.com"]
[Date "2020.05.05"]
[Round "7"]
[White "tteshan"]
[Black "SlavenPastar"]
[Result "1-0"]
[WhiteElo "2219"]
[BlackElo "2353"]
[TimeControl "180+1"]
[EndTime "11:17:57 PDT"]
[Termination "tteshan won by checkmate"]

1. d4 {[%clk 0:03:00.9]} 1... b6 {[%clk 0:02:59.4]} 2. c4 {[%clk 0:02:59.1]}
2... Bb7 {[%clk 0:02:59.6]} 3. Nc3 {[%clk 0:02:58.5]} 3... e6 {[%clk 0:02:58.4]}
4. e4 {[%clk 0:02:56.8]} 4... Bb4 {[%clk 0:02:58]} 5. f3 {[%clk 0:02:52.6]} 5...
f5 {[%clk 0:02:57.8]} 6. Bd3 {[%clk 0:02:48.8]} 6... fxe4 {[%clk 0:02:10.4]} 7.
fxe4 {[%clk 0:02:44]} 7... Nf6 {[%clk 0:01:52.3]} 8. Bg5 {[%clk 0:02:27.4]} 8...
h6 {[%clk 0:01:44.1]} 9. Bh4 {[%clk 0:02:11.9]} 9... g5 {[%clk 0:01:39.2]} 10.
Bg3 {[%clk 0:02:06.7]} 10... O-O {[%clk 0:01:30]} 11. Qe2 {[%clk 0:01:52.8]}
11... Nc6 {[%clk 0:01:23.6]} 12. Nf3 {[%clk 0:01:24.1]} 12... g4 {[%clk
0:01:23]} 13. Ne5 {[%clk 0:01:19]} 13... Nxd4 {[%clk 0:01:19.8]} 14. Qe3 {[%clk
0:01:13.6]} 14... Kg7 {[%clk 0:01:15.9]} 15. Bf4 {[%clk 0:00:56.7]} 15... Rh8
{[%clk 0:01:07.3]} 16. h3 {[%clk 0:00:57]} 16... Bc5 {[%clk 0:01:04.7]} 17. Qg3
{[%clk 0:00:50.5]} 17... h5 {[%clk 0:00:40.9]} 18. hxg4 {[%clk 0:00:45.9]} 18...
hxg4 {[%clk 0:00:41.1]} 19. O-O-O {[%clk 0:00:38.2]} 19... Qe8 {[%clk
0:00:27.4]} 20. Nxg4 {[%clk 0:00:35.2]} 20... Rxh1 {[%clk 0:00:21.8]} 21. Nxf6+
{[%clk 0:00:27.3]} 21... Kxf6 {[%clk 0:00:21.2]} 22. Be5+ {[%clk 0:00:25]} 22...
Kf7 {[%clk 0:00:17.5]} 23. Qg7# {[%clk 0:00:24]} 1-0

[Event "*** Titled Tuesday Blitz"]
[Site "Chess.com"]
[Date "2020.05.05"]
[Round "7"]
[White "BocharovD"]
[Black "Lagmantr"]
[Result "1-0"]
[WhiteElo "2887"]
[BlackElo "2706"]
[TimeControl "180+1"]
[EndTime "11:17:58 PDT"]
[Termination "BocharovD won on time"]

1. c4 {[%clk 0:03:00.9]} 1... e6 {[%clk 0:02:57.1]} 2. Nf3 {[%clk 0:03:00.6]}
2... Nf6 {[%clk 0:02:57.1]} 3. b3 {[%clk 0:02:58.7]} 3... d5 {[%clk 0:02:54.5]}
4. e3 {[%clk 0:02:58.9]} 4... b6 {[%clk 0:02:52.7]} 5. Bb2 {[%clk 0:02:58.2]}
5... Bb7 {[%clk 0:02:53.2]} 6. cxd5 {[%clk 0:02:57.3]} 6... exd5 {[%clk
0:02:52.2]} 7. d4 {[%clk 0:02:55.1]} 7... Nbd7 {[%clk 0:02:51.9]} 8. Nc3 {[%clk
0:02:52.7]} 8... Bd6 {[%clk 0:02:49.1]} 9. g3 {[%clk 0:02:51]} 9... O-O {[%clk
0:02:48.1]} 10. Bg2 {[%clk 0:02:51.3]} 10... c5 {[%clk 0:02:46.3]} 11. O-O
{[%clk 0:02:50.7]} 11... Rc8 {[%clk 0:02:45.9]} 12. Nh4 {[%clk 0:02:48.3]} 12...
cxd4 {[%clk 0:02:41.6]} 13. Nb5 {[%clk 0:02:47.8]} 13... Bb8 {[%clk 0:02:30.4]}
14. Nxd4 {[%clk 0:02:46.4]} 14... Ne4 {[%clk 0:02:28.6]} 15. Nhf5 {[%clk
0:02:45.2]} 15... Be5 {[%clk 0:02:23.1]} 16. Rc1 {[%clk 0:02:34]} 16... Rxc1
{[%clk 0:02:10.6]} 17. Qxc1 {[%clk 0:02:34.9]} 17... Qf6 {[%clk 0:02:10.7]} 18.
Bh3 {[%clk 0:02:21.5]} 18... Ba6 {[%clk 0:01:54.8]} 19. f4 {[%clk 0:02:06.2]}
19... Bxf1 {[%clk 0:00:29.2]} 20. fxe5 {[%clk 0:01:54.3]} 20... Nxe5 {[%clk
0:00:30.1]} 21. Qxf1 {[%clk 0:01:38.4]} 21... Qg5 {[%clk 0:00:30.1]} 22. Bg2
{[%clk 0:01:16.7]} 22... g6 {[%clk 0:00:26.1]} 23. h4 {[%clk 0:01:13.6]} 23...
Qd8 {[%clk 0:00:21.2]} 24. Nh6+ {[%clk 0:01:08.8]} 24... Kg7 {[%clk 0:00:19.3]}
25. Ng4 {[%clk 0:01:07.7]} 25... Nxg3 {[%clk 0:00:07.6]} 26. Qe1 {[%clk
0:01:04]} 1-0

[Event "*** Titled Tuesday Blitz"]
[Site "Chess.com"]
[Date "2020.05.05"]
[Round "7"]
[White "ChessBitl"]
[Black "Kostya26"]
[Result "1-0"]
[WhiteElo "2311"]
[BlackElo "2424"]
[TimeControl "180+1"]
[EndTime "11:17:59 PDT"]
[Termination "ChessBitl won by resignation"]

1. e4 {[%clk 0:03:00.9]} 1... c5 {[%clk 0:02:59.7]} 2. Nf3 {[%clk 0:03:00.6]}
2... Nc6 {[%clk 0:02:59.8]} 3. d4 {[%clk 0:03:00.2]} 3... cxd4 {[%clk
0:03:00.2]} 4. Nxd4 {[%clk 0:03:00.8]} 4... e5 {[%clk 0:03:00.9]} 5. Nb5 {[%clk
0:02:59.6]} 5... d6 {[%clk 0:03:00.3]} 6. c4 {[%clk 0:02:57.1]} 6... Be7 {[%clk
0:02:59.7]} 7. N1c3 {[%clk 0:02:56]} 7... a6 {[%clk 0:03:00.1]} 8. Na3 {[%clk
0:02:55.2]} 8... f5 {[%clk 0:03:01]} 9. exf5 {[%clk 0:02:51.4]} 9... Bxf5 {[%clk
0:03:00.6]} 10. Bd3 {[%clk 0:02:51.4]} 10... Be6 {[%clk 0:02:56.4]} 11. O-O
{[%clk 0:02:50.3]} 11... Nf6 {[%clk 0:02:56.2]} 12. Bg5 {[%clk 0:02:41.5]} 12...
O-O {[%clk 0:02:55]} 13. Nc2 {[%clk 0:02:40.1]} 13... Rc8 {[%clk 0:02:40.1]} 14.
Qe2 {[%clk 0:02:39.5]} 14... Na5 {[%clk 0:02:28.6]} 15. b3 {[%clk 0:02:38.7]}
15... b5 {[%clk 0:02:22.6]} 16. Ne3 {[%clk 0:02:10.9]} 16... bxc4 {[%clk
0:02:18.2]} 17. Nxc4 {[%clk 0:02:09.5]} 17... Nxc4 {[%clk 0:02:15.2]} 18. Bxc4
{[%clk 0:02:08.5]} 18... d5 {[%clk 0:02:02.6]} 19. Bxf6 {[%clk 0:02:08.1]} 19...
Bxf6 {[%clk 0:01:16.8]} 20. Rad1 {[%clk 0:02:07.1]} 20... Rxc4 {[%clk
0:01:12.6]} 21. bxc4 {[%clk 0:02:05.3]} 21... d4 {[%clk 0:01:12.7]} 22. Ne4
{[%clk 0:02:01.6]} 22... Qc7 {[%clk 0:01:00.4]} 23. Rc1 {[%clk 0:01:57.8]} 23...
Rd8 {[%clk 0:00:52]} 24. Qd3 {[%clk 0:01:54.2]} 24... Be7 {[%clk 0:00:47.8]} 25.
c5 {[%clk 0:01:50.1]} 25... Qc6 {[%clk 0:00:44.1]} 26. Rc2 {[%clk 0:01:42.2]}
26... Bf5 {[%clk 0:00:38.1]} 27. f3 {[%clk 0:01:40.2]} 27... Kh8 {[%clk
0:00:37.1]} 28. Rfc1 {[%clk 0:01:38.9]} 28... Bg5 {[%clk 0:00:34.5]} 29. Rb1
{[%clk 0:01:35.7]} 29... Be3+ {[%clk 0:00:33.5]} 30. Kh1 {[%clk 0:01:34]} 30...
Qh6 {[%clk 0:00:19.1]} 31. c6 {[%clk 0:01:20.2]} 31... Bf4 {[%clk 0:00:13.4]}
32. g3 {[%clk 0:01:20.2]} 32... Bxg3 {[%clk 0:00:11.5]} 33. c7 {[%clk
0:01:20.5]} 33... Rc8 {[%clk 0:00:10.4]} 34. Rb8 {[%clk 0:01:19.4]} 34... Bf4
{[%clk 0:00:06.5]} 35. Ng3 {[%clk 0:01:07.5]} 35... Bxg3 {[%clk 0:00:03.4]} 36.
Qxf5 {[%clk 0:01:05.9]} 1-0

[Event "*** Titled Tuesday Blitz"]
[Site "Chess.com"]
[Date "2020.05.05"]
[Round "7"]
[White "MPGM"]
[Black "MikaelyanArman"]
[Result "1-0"]
[WhiteElo "2532"]
[BlackElo "2730"]
[TimeControl "180+1"]
[EndTime "11:18:00 PDT"]
[Termination "MPGM won on time"]

1. d4 {[%clk 0:03:00.9]} 1... d5 {[%clk 0:02:58.6]} 2. Bg5 {[%clk 0:02:58.8]}
2... h6 {[%clk 0:02:55.9]} 3. Bh4 {[%clk 0:02:58.6]} 3... Bf5 {[%clk 0:02:49.2]}
4. Nd2 {[%clk 0:02:56.8]} 4... Nd7 {[%clk 0:02:45.9]} 5. e3 {[%clk 0:02:55.7]}
5... Ngf6 {[%clk 0:02:45.9]} 6. Bd3 {[%clk 0:02:53.5]} 6... Bxd3 {[%clk
0:02:43.4]} 7. cxd3 {[%clk 0:02:54.4]} 7... e6 {[%clk 0:02:36.1]} 8. Ngf3 {[%clk
0:02:53]} 8... Be7 {[%clk 0:02:36.3]} 9. O-O {[%clk 0:02:52.5]} 9... O-O {[%clk
0:02:36.3]} 10. Rc1 {[%clk 0:02:51.8]} 10... c6 {[%clk 0:02:28.7]} 11. Ne5
{[%clk 0:02:32.4]} 11... Nxe5 {[%clk 0:02:20.9]} 12. dxe5 {[%clk 0:02:32]} 12...
Nd7 {[%clk 0:02:21.4]} 13. Bxe7 {[%clk 0:02:29.9]} 13... Qxe7 {[%clk 0:02:22.3]}
14. d4 {[%clk 0:02:29]} 14... f6 {[%clk 0:02:15.7]} 15. exf6 {[%clk 0:02:27.5]}
15... Rxf6 {[%clk 0:02:14.3]} 16. b4 {[%clk 0:02:23.8]} 16... Raf8 {[%clk
0:01:36.8]} 17. f4 {[%clk 0:02:16.2]} 17... Qxb4 {[%clk 0:01:32.2]} 18. Rb1
{[%clk 0:02:15.2]} 18... Qa3 {[%clk 0:01:18.8]} 19. Rb3 {[%clk 0:02:00.9]} 19...
Qa6 {[%clk 0:01:18.3]} 20. Qc2 {[%clk 0:01:55.3]} 20... e5 {[%clk 0:01:11.1]}
21. dxe5 {[%clk 0:01:43.9]} 21... Nxe5 {[%clk 0:01:11]} 22. Rfb1 {[%clk
0:01:42.4]} 22... Ng6 {[%clk 0:00:46.8]} 23. Rxb7 {[%clk 0:01:39]} 23... d4
{[%clk 0:00:42.4]} 24. Ne4 {[%clk 0:01:36.8]} 24... Rf5 {[%clk 0:00:31]} 25. Ng3
{[%clk 0:01:13.7]} 25... R5f6 {[%clk 0:00:20]} 26. Nh5 {[%clk 0:01:13]} 26...
R8f7 {[%clk 0:00:10.9]} 27. Rxf7 {[%clk 0:01:07.9]} 27... Kxf7 {[%clk
0:00:07.8]} 28. Nxf6 {[%clk 0:01:05.7]} 28... Kxf6 {[%clk 0:00:07.8]} 29. exd4
{[%clk 0:01:02.7]} 29... Nxf4 {[%clk 0:00:07.7]} 30. Rf1 {[%clk 0:01:01]} 30...
Kg5 {[%clk 0:00:08.1]} 31. Qd2 {[%clk 0:00:59.6]} 1-0

[Event "*** Titled Tuesday Blitz"]
[Site "Chess.com"]
[Date "2020.05.05"]
[Round "7"]
[White "PlayChessSimple"]
[Black "jguerramzllo"]
[Result "1-0"]
[WhiteElo "2492"]
[BlackElo "2603"]
[TimeControl "180+1"]
[EndTime "11:18:03 PDT"]
[Termination "PlayChessSimple won on time"]

1. e4 {[%clk 0:03:00.9]} 1... e5 {[%clk 0:02:59.2]} 2. Nf3 {[%clk 0:03:00.3]}
2... Nc6 {[%clk 0:02:59.7]} 3. Nc3 {[%clk 0:03:00.8]} 3... Nf6 {[%clk
0:02:59.1]} 4. Bb5 {[%clk 0:03:01.1]} 4... Bd6 {[%clk 0:02:58.4]} 5. d3 {[%clk
0:02:59.5]} 5... O-O {[%clk 0:02:55.4]} 6. Ba4 {[%clk 0:02:59.2]} 6... Re8
{[%clk 0:02:38.6]} 7. g4 {[%clk 0:02:52.8]} 7... a6 {[%clk 0:00:53.7]} 8. g5
{[%clk 0:02:50.3]} 8... Nh5 {[%clk 0:00:51.9]} 9. Nxe5 {[%clk 0:02:40.3]} 9...
Bxe5 {[%clk 0:00:51.9]} 10. Qxh5 {[%clk 0:02:39.7]} 10... Bxc3+ {[%clk
0:00:50.7]} 11. bxc3 {[%clk 0:02:37.6]} 11... d5 {[%clk 0:00:51.3]} 12. Bb3
{[%clk 0:02:13.2]} 12... g6 {[%clk 0:00:47.5]} 13. Qh6 {[%clk 0:01:58]} 13...
Be6 {[%clk 0:00:34.7]} 14. Bb2 {[%clk 0:01:35.6]} 14... Ne5 {[%clk 0:00:16.5]}
15. O-O-O {[%clk 0:01:21.6]} 15... c5 {[%clk 0:00:14.4]} 16. exd5 {[%clk
0:01:12.7]} 16... Bxd5 {[%clk 0:00:13.3]} 17. Bxd5 {[%clk 0:01:11.9]} 17... Qxd5
{[%clk 0:00:12.5]} 18. c4 {[%clk 0:01:12.3]} 18... Qf3 {[%clk 0:00:08.8]} 19.
Rhe1 {[%clk 0:01:06.1]} 19... Qf4+ {[%clk 0:00:06.8]} 20. Kb1 {[%clk 0:00:48.9]}
20... f6 {[%clk 0:00:07.3]} 21. Re4 {[%clk 0:00:39.2]} 21... Qf3 {[%clk
0:00:06.5]} 22. Rde1 {[%clk 0:00:37.7]} 22... Qxf2 {[%clk 0:00:03.6]} 23. gxf6
{[%clk 0:00:33.4]} 23... Kf7 {[%clk 0:00:03.1]} 24. Qg7+ {[%clk 0:00:32.1]} 1-0

[Event "*** Titled Tuesday Blitz"]
[Site "Chess.com"]
[Date "2020.05.05"]
[Round "7"]
[White "BaMBoMaTTo"]
[Black "Trankuilizer"]
[Result "0-1"]
[WhiteElo "2660"]
[BlackElo "2544"]
[TimeControl "180+1"]
[EndTime "11:18:06 PDT"]
[Termination "Trankuilizer won by resignation"]

1. c4 {[%clk 0:03:00.6]} 1... Nf6 {[%clk 0:02:59.2]} 2. Nc3 {[%clk 0:03:00.6]}
2... g6 {[%clk 0:02:59.2]} 3. e4 {[%clk 0:03:00.8]} 3... d6 {[%clk 0:02:59.5]}
4. d4 {[%clk 0:03:00.9]} 4... Bg7 {[%clk 0:03:00.1]} 5. f3 {[%clk 0:03:00.8]}
5... O-O {[%clk 0:03:00.6]} 6. Nge2 {[%clk 0:03:01]} 6... c5 {[%clk 0:03:00.9]}
7. d5 {[%clk 0:03:00.4]} 7... e5 {[%clk 0:02:55.4]} 8. g4 {[%clk 0:02:47.1]}
8... h5 {[%clk 0:02:47.8]} 9. h3 {[%clk 0:02:41.7]} 9... Nh7 {[%clk 0:02:47.8]}
10. Be3 {[%clk 0:02:39.4]} 10... h4 {[%clk 0:02:42.5]} 11. Qd2 {[%clk
0:02:06.9]} 11... Bf6 {[%clk 0:02:41.8]} 12. f4 {[%clk 0:01:54.5]} 12... exf4
{[%clk 0:02:40]} 13. Nxf4 {[%clk 0:01:55.4]} 13... Nd7 {[%clk 0:02:35.9]} 14.
O-O-O {[%clk 0:01:42.7]} 14... Ne5 {[%clk 0:02:35.7]} 15. Be2 {[%clk 0:01:42.8]}
15... a6 {[%clk 0:02:33.9]} 16. Rdf1 {[%clk 0:01:20.6]} 16... Bd7 {[%clk
0:02:32.9]} 17. Rhg1 {[%clk 0:01:12.1]} 17... b5 {[%clk 0:02:31.2]} 18. g5
{[%clk 0:01:05.9]} 18... Bg7 {[%clk 0:02:29.5]} 19. Ng2 {[%clk 0:00:44.4]} 19...
Nxc4 {[%clk 0:02:06.6]} 20. Bxc4 {[%clk 0:00:44.1]} 20... bxc4 {[%clk
0:02:07.5]} 21. Nxh4 {[%clk 0:00:44.2]} 21... Qe7 {[%clk 0:02:08]} 22. Nf5
{[%clk 0:00:23.6]} 22... gxf5 {[%clk 0:01:59.8]} 23. exf5 {[%clk 0:00:24.5]}
23... f6 {[%clk 0:01:43.9]} 24. g6 {[%clk 0:00:15.1]} 24... Ng5 {[%clk
0:01:39.9]} 25. h4 {[%clk 0:00:12.9]} 25... Ne4 {[%clk 0:01:37]} 26. Nxe4 {[%clk
0:00:13]} 26... Qxe4 {[%clk 0:01:37.9]} 27. Rf4 {[%clk 0:00:10.7]} 27... Qe5
{[%clk 0:01:33]} 28. h5 {[%clk 0:00:06.5]} 28... Rfe8 {[%clk 0:01:24.5]} 29. Rf3
{[%clk 0:00:04.7]} 29... Qe4 {[%clk 0:01:19.6]} 30. Rgf1 {[%clk 0:00:04.9]}
30... c3 {[%clk 0:01:16]} 31. Qxc3 {[%clk 0:00:04.2]} 31... Bb5 {[%clk
0:01:13.2]} 32. h6 {[%clk 0:00:03.8]} 32... Bxf1 {[%clk 0:01:12.7]} 33. hxg7
{[%clk 0:00:02.7]} 33... Qxf3 {[%clk 0:01:10.1]} 34. Bh6 {[%clk 0:00:02.9]}
34... Qxc3+ {[%clk 0:01:09.2]} 0-1

[Event "*** Titled Tuesday Blitz"]
[Site "Chess.com"]
[Date "2020.05.05"]
[Round "7"]
[White "AlanZhang"]
[Black "mamonika"]
[Result "1-0"]
[WhiteElo "2175"]
[BlackElo "1968"]
[TimeControl "180+1"]
[EndTime "11:18:06 PDT"]
[Termination "AlanZhang won by resignation"]

1. e4 {[%clk 0:03:00.9]} 1... c5 {[%clk 0:02:59.5]} 2. Nf3 {[%clk 0:02:59.7]}
2... e6 {[%clk 0:02:59]} 3. d4 {[%clk 0:02:59.2]} 3... cxd4 {[%clk 0:02:59.9]}
4. Nxd4 {[%clk 0:02:59.6]} 4... Nc6 {[%clk 0:02:58.8]} 5. Nb3 {[%clk 0:02:58.3]}
5... Nf6 {[%clk 0:02:55.7]} 6. Bd3 {[%clk 0:02:58.8]} 6... Bb4+ {[%clk
0:02:51.8]} 7. Bd2 {[%clk 0:02:58.1]} 7... O-O {[%clk 0:02:45]} 8. O-O {[%clk
0:02:57.2]} 8... Bxd2 {[%clk 0:02:33.3]} 9. N1xd2 {[%clk 0:02:58.1]} 9... d5
{[%clk 0:02:32.8]} 10. f4 {[%clk 0:02:18.1]} 10... Qb6+ {[%clk 0:02:27.4]} 11.
Kh1 {[%clk 0:02:17.2]} 11... dxe4 {[%clk 0:02:23.1]} 12. Nxe4 {[%clk 0:02:18.1]}
12... Nd5 {[%clk 0:02:20.1]} 13. Qf3 {[%clk 0:01:16.1]} 13... Nd4 {[%clk
0:02:09.6]} 14. Qh3 {[%clk 0:01:06.1]} 14... h6 {[%clk 0:01:57.4]} 15. Nxd4
{[%clk 0:00:37.6]} 15... Qxd4 {[%clk 0:01:55.9]} 16. c3 {[%clk 0:00:38.2]} 16...
Qe3 {[%clk 0:01:51.3]} 17. Rf3 {[%clk 0:00:36.9]} 17... Qb6 {[%clk 0:01:44]} 18.
Raf1 {[%clk 0:00:36.5]} 18... Qxb2 {[%clk 0:01:26.2]} 19. Rg3 {[%clk 0:00:33.5]}
19... f5 {[%clk 0:01:10.4]} 20. Qxh6 {[%clk 0:00:29.6]} 20... Rf7 {[%clk
0:00:59.8]} 21. Nd6 {[%clk 0:00:24.3]} 21... Re7 {[%clk 0:00:52.8]} 22. Qg6
{[%clk 0:00:17]} 22... Qxc3 {[%clk 0:00:48.7]} 23. Bxf5 {[%clk 0:00:12.1]} 23...
exf5 {[%clk 0:00:42.2]} 24. Rxc3 {[%clk 0:00:11.9]} 24... Re6 {[%clk 0:00:34.6]}
25. Qf7+ {[%clk 0:00:11.4]} 25... Kh7 {[%clk 0:00:32.5]} 26. Rxc8 {[%clk
0:00:11.4]} 26... Rxc8 {[%clk 0:00:31.6]} 27. Qxe6 {[%clk 0:00:11.1]} 27... Rc6
{[%clk 0:00:30.2]} 28. Qxd5 {[%clk 0:00:10.7]} 1-0